fUSD/lending_fUSD_20260319
["ID","MTS","AMOUNT","RATE_DAILY","PERIOD"]
[408591810,1773905491589,-1927.84,0.00032328,14]
[408591811,1773905491598,-534.09,0.00032328,120]
[408591812,1773905491607,-500.0,0.00032328,7]
[408591813,1773905491619,-500.0,0.00032328,120]
[408591814,1773905491628,-1589.34,0.00032328,120]
[408591815,1773905491637,-778.23,0.00032328,120]
[408591816,1773905491647,-25215.87,0.00032328,120]
[408591817,1773905491656,-262.84119668,0.00032328,120]
[408591818,1773905491665,-500.0,0.00032328,14]
[408591819,1773905491674,-500.0,0.00032328,30]
[408591820,1773905491683,-537.53,0.00032328,120]
[408591821,1773905491692,-2662.42,0.00032328,7]
[408591822,1773905491702,-500.0,0.00032328,60]
[408591823,1773905491712,-500.0,0.00032328,120]
[408591824,1773905491722,-500.0,0.00032328,2]
[408591825,1773905491731,-699.29,0.00032328,120]
[408591826,1773905491741,-500.0,0.00032328,2]
[408591827,1773905491751,-2500.0,0.000325,7]
[408591828,1773905491760,-1000.0,0.000325,2]
[408591829,1773905491769,-5420.21226656,0.00032601,60]
[408591830,1773905491778,-5420.21226656,0.00032601,60]
[408591831,1773905491788,-649.71,0.00032602,120]
[408591832,1773905491797,-500.0,0.00032602,2]
[408591833,1773905491806,-500.0,0.00032602,12]
[408591834,1773905491815,-500.0,0.00032602,30]
[408591835,1773905491824,-2522.04,0.00032602,14]
[408591836,1773905491834,-500.0,0.00032602,30]
[408591837,1773905491843,-875.11,0.00032602,2]
[408591838,1773905491853,-300.0,0.00032602,2]
[408591839,1773905491862,-500.0,0.00032602,120]
[408591840,1773905491871,-1374.85,0.00032602,2]
[408591841,1773905491880,-699.08,0.00032602,120]
[408591842,1773905491890,-880.07,0.00032602,5]
[408591843,1773905491899,-500.0,0.00032602,30]
[408591844,1773905491908,-500.0,0.00032602,120]
[408591845,1773905491917,-500.74820449,0.00032602,2]
[408591846,1773905491927,-535.46,0.00032602,2]
[408591847,1773905491935,-500.0,0.00032602,2]
[408591848,1773905491946,-826.12,0.00032602,120]
[408591849,1773905491955,-500.0,0.00032602,2]
[408591850,1773905491965,-620.41,0.00032602,2]
[408591851,1773905491974,-812.47,0.00032602,120]
[408591852,1773905491983,-500.0,0.00032602,120]
[408591853,1773905491992,-500.0,0.00032602,120]
[408591854,1773905492001,-2105.78,0.00032602,7]
[408591855,1773905492010,-500.0,0.00032602,120]
[408591856,1773905492019,-1111.54,0.00032602,120]
[408591857,1773905492028,-987.08,0.00032602,120]
[408591858,1773905492037,-1410.25,0.00032602,120]
[408591859,1773905492046,-1904.73,0.00032602,120]
[408591860,1773905492054,-500.0,0.00032602,120]
[408591861,1773905492063,-500.0,0.00032602,14]
[408591862,1773905492072,-831.44,0.00032602,120]
[408591863,1773905492082,-648.19,0.00032602,120]
[408591864,1773905492090,-796.08,0.00032602,120]
[408591865,1773905492100,-500.0,0.00032602,120]
[408591866,1773905492109,-500.0,0.00032602,120]
[408591867,1773905492118,-600.28,0.00032602,120]
[408591868,1773905492127,-737.65,0.00032602,120]
[408591869,1773905492136,-509.22,0.00032602,120]
[408591870,1773905492145,-2298.5,0.00032602,120]
[408591871,1773905492154,-879.95,0.00032602,120]
[408591872,1773905492164,-1300.77,0.00032602,120]
[408591873,1773905492173,-500.0,0.00032602,2]
[408591874,1773905492182,-799.29,0.00032602,120]
[408591875,1773905492191,-7396.09,0.00032602,2]
[408591876,1773905492202,-6299.65,0.00032602,14]
[408591877,1773905492212,-500.0,0.00032602,120]
[408591878,1773905492221,-500.0,0.00032602,120]
[408591879,1773905492230,-500.0,0.00032602,120]
[408591880,1773905492239,-712.99,0.00032602,120]
[408591881,1773905492247,-300.0,0.00032602,2]
[408591882,1773905492257,-10193.89,0.00032602,14]
[408591883,1773905492267,-500.0,0.00032602,16]
[408591884,1773905492278,-500.0,0.00032602,120]
[408591885,1773905492287,-1927.84,0.00032602,14]
[408591886,1773905492297,-534.09,0.00032602,120]
[408591887,1773905492306,-500.0,0.00032602,7]
[408591888,1773905492316,-500.0,0.00032602,120]
[408591889,1773905492325,-1589.34,0.00032602,120]
[408591890,1773905492335,-778.23,0.00032602,120]
[408591891,1773905492344,-25215.87,0.00032602,120]
[408591892,1773905492353,-500.0,0.00032602,14]
[408591893,1773905492362,-500.0,0.00032602,30]
[408591894,1773905492371,-537.53,0.00032602,120]
[408591895,1773905492380,-2662.42,0.00032602,7]
[408591896,1773905492389,-500.0,0.00032602,60]
[408591897,1773905492398,-500.0,0.00032602,120]
[408591898,1773905492407,-500.0,0.00032602,2]
[408591899,1773905492417,-699.29,0.00032602,120]
[408591900,1773905492425,-500.0,0.00032602,2]
[408591901,1773905492435,-172.0,0.00032683,13]
[408591902,1773905492445,-172.0,0.00032683,13]
[408591903,1773905492456,-172.0,0.00032683,13]
[408591904,1773905492469,-2107.5,0.00032732,2]
[408591905,1773905492480,-4865.31854287,0.000328,2]
[408591906,1773905492489,-719.44573251,0.000328,120]
[408591907,1773905492498,-333.0,0.00032832,30]
[408591908,1773905492507,-150.0,0.00032834,2]
[408591909,1773905492516,-501.0,0.00032845,18]
[408591910,1773905492525,-1734.82727282,0.0003287,4]
[408591911,1773905492534,-2950.46277789,0.0003287,7]
[408591912,1773905492545,-5420.21226656,0.00032875,60]
[408591913,1773905492554,-5420.21226656,0.00032875,60]
[408591914,1773905492563,-649.71,0.00032876,120]
[408591915,1773905492573,-500.0,0.00032876,2]
[408591916,1773905492582,-500.0,0.00032876,12]
[408591917,1773905492593,-500.0,0.00032876,30]
[408591918,1773905492602,-2522.04,0.00032876,14]
[408591919,1773905492610,-500.0,0.00032876,30]
[408591920,1773905492622,-875.11,0.00032876,2]
[408591921,1773905492631,-300.0,0.00032876,2]
[408591922,1773905492640,-500.0,0.00032876,120]
[408591923,1773905492649,-195.89366341,0.00032876,2]
[408591924,1773905492658,-500.0,0.00032876,2]
[408591925,1773905492667,-500.0,0.00032876,2]
[408591926,1773905492676,-500.0,0.00032876,2]
[408591927,1773905492685,-500.0,0.00032876,2]
[408591928,1773905492694,-500.0,0.00032876,2]
[408591929,1773905492703,-173.54910597,0.00032876,2]
[408591930,1773905492712,-500.0,0.00032876,2]
[408591931,1773905492721,-500.0,0.00032876,2]
[408591932,1773905492730,-500.0,0.00032876,2]
[408591933,1773905492739,-500.0,0.00032876,2]
[408591934,1773905492747,-500.0,0.00032876,2]
[408591935,1773905492756,-500.0,0.00032876,2]
[408591936,1773905492765,-500.0,0.00032876,2]
[408591937,1773905492774,-500.0,0.00032876,2]
[408591938,1773905492783,-500.0,0.00032876,2]
[408591939,1773905492792,-500.0,0.00032876,2]
[408591940,1773905492800,-500.0,0.00032876,2]
[408591941,1773905492809,-500.0,0.00032876,2]
[408591942,1773905492819,-500.0,0.00032876,2]
[408591943,1773905492828,-500.0,0.00032876,2]
[408591944,1773905492837,-500.0,0.00032876,2]
[408591945,1773905492847,-500.0,0.00032876,2]
[408591946,1773905492856,-500.0,0.00032876,2]
[408591947,1773905492865,-500.0,0.00032876,2]
[408591948,1773905492875,-500.0,0.00032876,2]
[408591949,1773905492884,-165.0144504,0.00032876,2]
[408591950,1773905492893,-500.0,0.00032876,2]
[408591951,1773905492902,-1374.85,0.00032876,2]
[408591952,1773905492911,-500.0,0.00032876,2]
[408591953,1773905492921,-423.24044448,0.00032876,2]
[408591954,1773905492932,-500.0,0.00032876,2]
[408591955,1773905492941,-500.0,0.00032876,2]
[408591956,1773905492951,-500.0,0.00032876,2]
[408591957,1773905492961,-500.0,0.00032876,2]
[408591958,1773905492970,-500.0,0.00032876,2]
[408591959,1773905492980,-500.0,0.00032876,2]
[408591960,1773905492989,-500.0,0.00032876,2]
[408591961,1773905492998,-500.0,0.00032876,2]
[408591962,1773905493007,-500.0,0.00032876,2]
[408591963,1773905493016,-500.0,0.00032876,2]
[408591964,1773905493025,-500.0,0.00032876,2]
[408591965,1773905493034,-502.06473179,0.00032876,2]
[408591966,1773905493043,-500.0,0.00032876,2]
[408591967,1773905493052,-500.0,0.00032876,2]
[408591968,1773905493062,-500.0,0.00032876,2]
[408591969,1773905493071,-265.46861971,0.00032876,2]
[408591970,1773905493081,-500.0,0.00032876,2]
[408591971,1773905493090,-500.0,0.00032876,2]
[408591972,1773905493098,-643.11756999,0.00032876,2]
[408591973,1773905493108,-699.08,0.00032876,120]
[408591974,1773905493117,-880.07,0.00032876,5]
[408591975,1773905493126,-408.62,0.00032876,30]
[408591976,1773905493135,-400.64203527,0.00032876,2]
[408591977,1773905493144,-350.0,0.00032876,2]
[408591978,1773905493153,-500.0,0.00032876,120]
[408591979,1773905493162,-350.0,0.00032876,2]
[408591980,1773905493172,-494.25859005,0.00032876,2]
[408591981,1773905493181,-350.0,0.00032876,2]
[408591982,1773905493191,-350.0,0.00032876,2]
[408591983,1773905493200,-535.46,0.00032876,2]
[408591984,1773905493209,-500.0,0.00032876,2]
[408591985,1773905493218,-826.12,0.00032876,120]
[408591986,1773905493228,-500.0,0.00032876,2]
[408591987,1773905493237,-620.41,0.00032876,2]
[408591988,1773905493246,-812.47,0.00032876,120]
[408591989,1773905493255,-500.0,0.00032876,120]
[408591990,1773905493265,-500.0,0.00032876,120]
[408591991,1773905493274,-2105.78,0.00032876,7]
[408591992,1773905493287,-495.85088976,0.00032876,2]
[408591993,1773905493296,-395.66768115,0.00032876,2]
[408591994,1773905493305,-500.0,0.00032876,120]
[408591995,1773905493314,-1111.54,0.00032876,120]
[408591996,1773905493323,-987.08,0.00032876,120]
[408591997,1773905493332,-1410.25,0.00032876,120]
[408591998,1773905493341,-1904.73,0.00032876,120]
[408591999,1773905493350,-495.4775059,0.00032876,120]
[408592000,1773905493360,-500.0,0.00032876,14]
[408592001,1773905493369,-831.44,0.00032876,120]
[408592002,1773905493378,-648.19,0.00032876,120]
[408592003,1773905493387,-796.08,0.00032876,120]
[408592004,1773905493396,-500.0,0.00032876,120]
[408592005,1773905493405,-500.0,0.00032876,120]
[408592006,1773905493415,-600.28,0.00032876,120]
[408592007,1773905493425,-737.65,0.00032876,120]
[408592008,1773905493434,-509.22,0.00032876,120]
[408592009,1773905493443,-164.82756279,0.00032876,2]
[408592010,1773905493452,-197.8913232,0.00032876,2]
[408592011,1773905493462,-160.53202265,0.00032876,2]
[408592012,1773905493471,-827.96827956,0.00032876,2]
[408592013,1773905493481,-500.0,0.00032876,90]
[408592014,1773905493491,-500.0,0.00032876,90]
[408592015,1773905493504,-827.96827956,0.00032876,2]
[408592016,1773905493514,-827.96827956,0.00032876,2]
[408592017,1773905493523,-500.0,0.00032876,90]
[408592018,1773905493532,-827.96827956,0.00032876,2]
[408592019,1773905493546,-500.0,0.00032876,90]
[408592020,1773905493555,-827.96827956,0.00032876,2]
[408592021,1773905493565,-827.96827956,0.00032876,2]
[408592022,1773905493574,-827.96827956,0.00032876,2]
[408592023,1773905493585,-500.0,0.00032876,90]
[408592024,1773905493594,-500.0,0.00032876,90]
[408592025,1773905493604,-500.0,0.00032876,90]
[408592026,1773905493613,-500.0,0.00032876,90]
[408592027,1773905493624,-827.96827956,0.00032876,2]
[408592028,1773905493633,-500.0,0.00032876,90]
[408592029,1773905493642,-500.0,0.00032876,90]
[408592030,1773905493652,-500.0,0.00032876,90]
[408592031,1773905493661,-468.91609883,0.00032876,2]
[408592032,1773905493669,-1372.60776371,0.00032876,2]
[408592033,1773905493678,-1372.60776371,0.00032876,2]
[408592034,1773905493688,-1372.60776371,0.00032876,2]
[408592035,1773905493697,-1372.60776371,0.00032876,2]
[408592036,1773905493707,-1647.12931646,0.00032876,2]
[408592037,1773905493716,-500.0,0.00032876,2]
[408592038,1773905493725,-500.0,0.00032876,2]
[408592039,1773905493734,-500.0,0.00032876,2]
[408592040,1773905493743,-500.0,0.00032876,2]
[408592041,1773905493752,-478.02113199,0.00032876,2]
[408592042,1773905493761,-500.0,0.00032876,2]
[408592043,1773905493770,-500.0,0.00032876,2]
[408592044,1773905493780,-2298.5,0.00032876,120]
[408592045,1773905493790,-879.95,0.00032876,120]
[408592046,1773905493800,-1300.77,0.00032876,120]
[408592047,1773905493809,-500.0,0.00032876,2]
[408592048,1773905493819,-799.29,0.00032876,120]
[408592049,1773905493828,-7396.09,0.00032876,2]
[408592050,1773905493838,-6299.65,0.00032876,14]
[408592051,1773905493847,-1000.0,0.00032876,30]
[408592052,1773905493857,-1000.0,0.00032876,30]
[408592053,1773905493866,-1000.0,0.00032876,30]
[408592054,1773905493875,-1000.0,0.00032876,30]
[408592055,1773905493884,-1000.0,0.00032876,30]
[408592056,1773905493894,-1000.0,0.00032876,30]
[408592057,1773905493903,-1000.0,0.00032876,30]
[408592058,1773905493912,-1000.0,0.00032876,30]
[408592059,1773905493921,-1000.0,0.00032876,30]
[408592060,1773905493930,-1000.0,0.00032876,30]
[408592061,1773905493939,-557.66168493,0.00032876,30]
[408592062,1773905493948,-500.0,0.00032876,120]
[408592063,1773905493957,-500.0,0.00032876,120]
[408592064,1773905493967,-500.0,0.00032876,120]
[408592065,1773905493976,-712.99,0.00032876,120]
[408592066,1773905493985,-10193.89,0.00032876,14]
[408592067,1773905493994,-300.0,0.00032876,2]
[408592068,1773905494004,-500.0,0.00032876,16]
[408592069,1773905494013,-500.0,0.00032876,120]
[408592070,1773905494022,-1927.84,0.00032876,14]
[408592071,1773905494032,-534.09,0.00032876,120]
[408592072,1773905494041,-500.0,0.00032876,7]
[408592073,1773905494050,-500.0,0.00032876,120]
[408592074,1773905494059,-1589.34,0.00032876,120]
[408592075,1773905494069,-778.23,0.00032876,120]
[408592076,1773905494078,-25215.87,0.00032876,120]
[408592077,1773905494088,-500.0,0.00032876,14]
[408592078,1773905494097,-500.0,0.00032876,30]
[408592079,1773905494106,-537.53,0.00032876,120]
[408592080,1773905494116,-2662.42,0.00032876,7]
[408592081,1773905494125,-500.0,0.00032876,60]
[408592082,1773905494134,-500.0,0.00032876,120]
[408592083,1773905494144,-500.0,0.00032876,2]
[408592084,1773905494154,-699.29,0.00032876,120]
[408592085,1773905494163,-500.0,0.00032876,2]
[408592086,1773905494174,-1000.0,0.00032877,15]
[408592087,1773905494183,-1000.0,0.00032877,15]
[408592088,1773905494192,-773.0,0.00032877,15]
[408592089,1773905494201,-872.57,0.00032877,2]
[408592090,1773905494211,-347.23,0.00032877,2]
[408592091,1773905494220,-156.62345,0.00032877,7]
[408592092,1773905494230,-156.62345,0.00032877,7]
[408592093,1773905494239,-156.62345,0.00032877,7]
[408592094,1773905494248,-156.62345,0.00032877,7]
[408592095,1773905494258,-156.62345,0.00032877,7]
[408592096,1773905494267,-156.62345,0.00032877,7]
[408592097,1773905494276,-156.62345,0.00032877,7]
[408592098,1773905494285,-156.62345,0.00032877,7]
[408592099,1773905494294,-156.62345,0.00032877,7]
[408592100,1773905494304,-156.62345,0.00032877,7]
[408592101,1773905494314,-156.62345,0.00032877,7]
[408592102,1773905494323,-156.62345,0.00032877,7]
[408592103,1773905494332,-156.62345,0.00032877,7]
[408592104,1773905494341,-156.62345,0.00032877,7]
[408592105,1773905494350,-156.62345,0.00032877,7]
[408592106,1773905494359,-156.62345,0.00032877,7]
[408592107,1773905494368,-2000.0,0.00032877,120]
[408592108,1773905494378,-500.0,0.00032877,2]
[408592109,1773905494387,-500.0,0.00032877,2]
[408592110,1773905494397,-385.57220681,0.00032877,2]
[408592111,1773905494406,-500.0,0.00032877,2]
[408592112,1773905494415,-500.0,0.00032877,2]
[408592113,1773905494424,-500.0,0.00032877,2]
[408592114,1773905494433,-500.0,0.00032877,2]
[408592115,1773905494442,-1780.39,0.00032877,7]
[408592116,1773905494452,-73291.0,0.00032877,120]
[408592117,1773905494461,-150.0,0.00032877,2]
[408592118,1773905494471,-150.0,0.00032877,2]
[408592119,1773905494480,-150.0,0.00032877,2]
[408592120,1773905494488,-150.0,0.00032877,2]
[408592121,1773905494498,-169.89195002,0.00032877,2]
[408592122,1773905494507,-151.0,0.00032997,14]
[408592123,1773905494518,-51671.76783379,0.00033,2]
[408592124,1773905494527,-26570.70276252,0.00033,2]
[408592125,1773905494537,-16339.42071171,0.00033,13]
[408592126,1773905494548,-12977.60915278,0.00033,13]
[408592127,1773905494557,-1000.0,0.00033,120]
[408592128,1773905494566,-3000000.0,0.00033,120]
[408592129,1773905494576,-2035.25677741,0.00033,7]
[408592130,1773905494585,-764.84598114,0.00033,120]
[408592131,1773905494594,-10000.0,0.00033,120]
[408592132,1773905494603,-5000.0,0.00033,30]
[408592133,1773905494612,-1000.0,0.00033,12]
[408592134,1773905494624,-184.88313878,0.00033,120]
[408592135,1773905494633,-595.4536963,0.00033,120]
[408592136,1773905494642,-265.54281774,0.00033,120]
[408592137,1773905494652,-256.29609255,0.00033,120]
[408592138,1773905494661,-208.2426781,0.00033,120]
[408592139,1773905494670,-203.91408967,0.00033,120]
[408592140,1773905494679,-271.94714255,0.00033,120]
[408592141,1773905494688,-291.65374576,0.00033,120]
[408592142,1773905494698,-564.631953,0.00033,14]
[408592143,1773905494706,-151.0,0.00033,7]
[408592144,1773905494715,-151.0,0.00033,7]
[408592145,1773905494724,-188.0,0.00033,7]
[408592146,1773905494733,-151.0,0.00033,7]
[408592147,1773905494742,-151.0,0.00033,7]
[408592148,1773905494752,-205.958111,0.00033,7]
[408592149,1773905494761,-151.0,0.00033,7]
[408592150,1773905494770,-151.0,0.00033,7]
[408592151,1773905494779,-151.0,0.00033,7]
[408592152,1773905494788,-151.0,0.00033,7]
[408592153,1773905494797,-151.0,0.00033,7]
[408592154,1773905494807,-151.0,0.00033,7]
[408592155,1773905494816,-168.185178,0.00033,7]
[408592156,1773905494825,-151.0,0.00033,7]
[408592157,1773905494835,-151.0,0.00033,7]
[408592158,1773905494844,-187.672304,0.00033,7]
[408592159,1773905494853,-151.0,0.00033,7]
[408592160,1773905494862,-225.309033,0.00033,7]
[408592161,1773905494871,-151.0,0.00033,7]
[408592162,1773905494881,-151.0,0.00033,7]
[408592163,1773905494890,-151.0,0.00033,7]
[408592164,1773905494900,-151.0,0.00033,7]
[408592165,1773905494909,-151.0,0.00033,7]
[408592166,1773905494919,-151.0,0.00033,7]
[408592167,1773905494928,-151.0,0.00033,7]
[408592168,1773905494937,-151.0,0.00033,7]
[408592169,1773905494947,-166.392178,0.00033,7]
[408592170,1773905494956,-166.392178,0.00033,7]
[408592171,1773905494965,-281.65524,0.00033,7]
[408592172,1773905494974,-166.392178,0.00033,7]
[408592173,1773905494983,-166.392182,0.00033,7]
[408592174,1773905494992,-181.764695,0.00033,7]
[408592175,1773905495001,-181.764695,0.00033,7]
[408592176,1773905495011,-181.764695,0.00033,7]
[408592177,1773905495019,-181.764703,0.00033,7]
[408592178,1773905495028,-151.0,0.00033,7]
[408592179,1773905495037,-606.551997,0.00033,7]
[408592180,1773905495046,-606.551997,0.00033,7]
[408592181,1773905495055,-606.551997,0.00033,7]
[408592182,1773905495064,-606.552,0.00033,7]
[408592183,1773905495073,-151.0,0.00033,7]
[408592184,1773905495082,-156.62345,0.00033,7]
[408592185,1773905495092,-205.254339,0.00033,7]
[408592186,1773905495101,-205.254339,0.00033,7]
[408592187,1773905495110,-156.62345,0.00033,7]
[408592188,1773905495119,-156.62345,0.00033,7]
[408592189,1773905495129,-205.254339,0.00033,7]
[408592190,1773905495138,-205.254343,0.00033,7]
[408592191,1773905495147,-156.623443,0.00033,7]
[408592192,1773905495156,-522.028785,0.00033,7]
[408592193,1773905495165,-522.028785,0.00033,7]
[408592194,1773905495175,-522.028785,0.00033,7]
[408592195,1773905495185,-522.028792,0.00033,7]
[408592196,1773905495194,-156.200952,0.00033,7]
[408592197,1773905495204,-151.0,0.00033,7]
[408592198,1773905495214,-151.0,0.00033,7]
[408592199,1773905495223,-611.281038,0.00033,7]
[408592200,1773905495233,-252.360534,0.00033,7]
[408592201,1773905495242,-611.281038,0.00033,7]
[408592202,1773905495252,-252.360534,0.00033,7]
[408592203,1773905495261,-611.281038,0.00033,7]
[408592204,1773905495271,-252.360534,0.00033,7]
[408592205,1773905495281,-611.281034,0.00033,7]
[408592206,1773905495291,-252.360534,0.00033,7]
[408592207,1773905495301,-151.00011,0.00033,7]
[408592208,1773905495311,-151.0,0.00033,7]
[408592209,1773905495320,-151.0,0.00033,7]
[408592210,1773905495330,-291.349179,0.00033,7]
[408592211,1773905495339,-151.0,0.00033,7]
[408592212,1773905495349,-151.0,0.00033,7]
[408592213,1773905495358,-151.0,0.00033,7]
[408592214,1773905495368,-165.519769,0.00033,7]
[408592215,1773905495378,-151.0,0.00033,7]
[408592216,1773905495387,-151.0,0.00033,7]
[408592217,1773905495397,-163.372479,0.00033,7]
[408592218,1773905495408,-151.0,0.00033,7]
[408592219,1773905495418,-499.928054,0.00033,7]
[408592220,1773905495428,-151.0,0.00033,7]
[408592221,1773905495437,-499.928054,0.00033,7]
[408592222,1773905495447,-298.098682,0.00033,7]
[408592223,1773905495457,-499.928054,0.00033,7]
[408592224,1773905495468,-151.0,0.00033,7]
[408592225,1773905495478,-151.0,0.00033,7]
[408592226,1773905495488,-207.536128,0.00033,7]
[408592227,1773905495498,-172.618521,0.00033,7]
[408592228,1773905495508,-499.928051,0.00033,7]
[408592229,1773905495518,-151.0,0.00033,7]
[408592230,1773905495527,-151.0,0.00033,7]
[408592231,1773905495538,-151.0,0.00033,7]
[408592232,1773905495551,-268.173321,0.00033,7]
[408592233,1773905495561,-189.183701,0.00033,7]
[408592234,1773905495570,-151.0,0.00033,7]
[408592235,1773905495579,-189.183701,0.00033,7]
[408592236,1773905495590,-189.183701,0.00033,7]
[408592237,1773905495599,-189.183697,0.00033,7]
[408592238,1773905495610,-151.0,0.00033,7]
[408592239,1773905495620,-151.0,0.00033,7]
[408592240,1773905495631,-269.297676,0.00033,7]
[408592241,1773905495641,-151.0,0.00033,7]
[408592242,1773905495651,-267.249242,0.00033,7]
[408592243,1773905495661,-151.0,0.00033,7]
[408592244,1773905495671,-267.249242,0.00033,7]
[408592245,1773905495681,-267.249242,0.00033,7]
[408592246,1773905495690,-151.0,0.00033,7]
[408592247,1773905495700,-151.0,0.00033,7]
[408592248,1773905495710,-267.249238,0.00033,7]
[408592249,1773905495719,-151.0,0.00033,7]
[408592250,1773905495729,-291.547711,0.00033,7]
[408592251,1773905495741,-151.0,0.00033,7]
[408592252,1773905495750,-291.547711,0.00033,7]
[408592253,1773905495759,-151.0,0.00033,7]
[408592254,1773905495769,-291.547711,0.00033,7]
[408592255,1773905495778,-291.547707,0.00033,7]
[408592256,1773905495787,-317.087267,0.00033,7]
[408592257,1773905495797,-317.087267,0.00033,7]
[408592258,1773905495806,-317.087267,0.00033,7]
[408592259,1773905495816,-258.70875,0.00033,7]
[408592260,1773905495826,-317.087275,0.00033,7]
[408592261,1773905495835,-258.70875,0.00033,7]
[408592262,1773905495844,-151.0,0.00033,7]
[408592263,1773905495853,-258.70875,0.00033,7]
[408592264,1773905495862,-258.708754,0.00033,7]
[408592265,1773905495872,-151.0,0.00033,7]
[408592266,1773905495881,-306.351399,0.00033,7]
[408592267,1773905495890,-306.351399,0.00033,7]
[408592268,1773905495900,-306.351399,0.00033,7]
[408592269,1773905495910,-306.351391,0.00033,7]
[408592270,1773905495920,-151.0,0.00033,7]
[408592271,1773905495929,-151.0,0.00033,7]
[408592272,1773905495938,-151.0,0.00033,7]
[408592273,1773905495948,-151.0,0.00033,7]
[408592274,1773905495957,-151.0,0.00033,7]
[408592275,1773905495967,-151.0,0.00033,7]
[408592276,1773905495976,-151.0,0.00033,7]
[408592277,1773905495986,-151.0,0.00033,7]
[408592278,1773905495995,-196.504664,0.00033,7]
[408592279,1773905496004,-427.611471,0.00033,7]
[408592280,1773905496014,-427.611471,0.00033,7]
[408592281,1773905496023,-427.611471,0.00033,7]
[408592282,1773905496034,-847.000962,0.00033,7]
[408592283,1773905496044,-427.611465,0.00033,7]
[408592284,1773905496053,-173.890012,0.00033,7]
[408592285,1773905496063,-847.000962,0.00033,7]
[408592286,1773905496072,-173.890012,0.00033,7]
[408592287,1773905496082,-847.000962,0.00033,7]
[408592288,1773905496091,-151.0,0.00033,7]
[408592289,1773905496101,-222.257964,0.00033,7]
[408592290,1773905496111,-173.890012,0.00033,7]
[408592291,1773905496121,-847.000972,0.00033,7]
[408592292,1773905496130,-151.0,0.00033,7]
[408592293,1773905496140,-222.257964,0.00033,7]
[408592294,1773905496150,-173.890021,0.00033,7]
[408592295,1773905496160,-222.257964,0.00033,7]
[408592296,1773905496170,-222.257956,0.00033,7]
[408592297,1773905496180,-151.0,0.00033,7]
[408592298,1773905496190,-442.198869,0.00033,7]
[408592299,1773905496200,-442.198869,0.00033,7]
[408592300,1773905496210,-442.198869,0.00033,7]
[408592301,1773905496220,-189.332028,0.00033,7]
[408592302,1773905496229,-442.198876,0.00033,7]
[408592303,1773905496239,-268.457719,0.00033,7]
[408592304,1773905496249,-268.457719,0.00033,7]
[408592305,1773905496260,-189.332028,0.00033,7]
[408592306,1773905496271,-189.332028,0.00033,7]
[408592307,1773905496281,-268.457719,0.00033,7]
[408592308,1773905496290,-189.332036,0.00033,7]
[408592309,1773905496300,-268.457715,0.00033,7]